bitfinex/quotes_SOLUSD_20250226
["timestamp","ask_amount","ask_price","bid_price","bid_amount"]
[1740554211844,81.1,142.19,142.13,6.4516]
[1740554212155,81.1,142.18,142.13,13.4874]
[1740554212323,7.0319,142.21,142.13,13.4874]
[1740554212523,81.1,142.2,142.13,13.4874]
[1740554213546,81.1,142.2,142.13,6.4516]
[1740554213743,7.0319,142.21,142.13,6.4516]
[1740554213744,81.22549,142.19,142.13,6.4516]
[1740554213933,7.0333,142.18,142.13,6.4516]
[1740554214135,81.1,142.17,142.13,6.4516]
[1740554215948,81.1,142.16,142.13,6.4516]
[1740554216149,81.1,142.15,142.11,0.063]
[1740554216452,20.0,142.12,142.11,0.063]
[1740554216654,81.1,142.13,142.11,0.063]
[1740554216954,81.1,142.12,142.11,0.063]
[1740554219055,88.1363,142.12,142.11,0.063]
[1740554220253,81.1,142.12,142.11,0.063]
[1740554220554,81.1,142.15,142.11,0.063]
[1740554220855,88.1349,142.15,142.11,0.063]
[1740554224448,81.1,142.14,142.11,0.063]
[1740554224843,81.1,142.13,142.11,0.063]
[1740554225555,20.0,142.1,142.09,0.03]
[1740554225858,38.64964886,142.1,142.09,0.03]
[1740554226233,20.0,142.1,142.09,0.03]
[1740554226651,34.17233886,142.1,142.09,0.0001]
[1740554226863,33.17233886,142.1,142.09,0.0001]
[1740554227551,88.1372,142.1,142.09,0.0001]
[1740554228471,110.65685841,142.1,142.09,0.0001]
[1740554228757,111.65685841,142.1,142.09,0.0001]
[1740554229137,29.55685841,142.1,142.09,0.0001]
[1740554229339,29.43136841,142.1,142.09,0.0001]
[1740554229644,0.12549,142.09,142.06,0.03]
[1740554229963,7.0382,142.08,142.06,0.03]
[1740554231747,88.1378,142.09,142.06,0.03]
[1740554232369,81.1,142.09,142.06,0.03]
[1740554232654,88.1378,142.09,142.06,0.03]
[1740554233168,81.1,142.09,142.06,0.03]
[1740554237679,81.1,142.08,142.06,0.03]
[1740554238882,81.1,142.12,142.07,8.0022]
[1740554239070,81.1,142.11,142.07,8.0022]
[1740554240271,81.1,142.11,142.07,15.0405]
[1740554244284,81.163,142.15,142.08,18.77513886]
[1740554244506,81.1,142.14,142.09,6.34]
[1740554244824,0.063,142.15,142.12,0.12549]
[1740554245009,0.063,142.15,142.13,6.64]
[1740554248726,0.063,142.15,142.13,13.6757]
[1740554248886,0.063,142.15,142.13,6.64]
[1740554251785,0.063,142.15,142.09,12.9404]
[1740554251996,81.1,142.14,142.09,12.9404]
[1740554252211,81.1,142.14,142.09,6.6004]
[1740554253011,88.1353,142.14,142.09,6.6004]
[1740554253217,88.1353,142.14,142.08,6.34]
[1740554253381,81.1,142.13,142.08,6.34]
[1740554254021,81.1,142.12,142.06,0.03]
[1740554254196,81.1,142.11,142.06,0.03]
[1740554254890,7.0372,142.1,142.06,0.03]
[1740554255089,81.1,142.09,142.06,0.03]
[1740554255304,81.1,142.08,142.06,0.03]
[1740554256813,88.1387,142.08,142.06,0.03]
[1740554258514,81.1,142.07,142.06,0.03]
[1740554260617,81.1,142.14,142.1,0.12549]
[1740554260787,0.063,142.15,142.12,0.12549]
[1740554262518,0.063,142.15,142.11,6.38]
[1740554263513,81.1,142.14,142.11,6.38]
[1740554265698,0.063,142.15,142.12,0.12549]
[1740554269126,0.063,142.15,142.12,25.81123886]
[1740554270125,0.063,142.15,142.14,14.96568]
[1740554270329,0.063,142.15,142.14,118.51532886]
[1740554270623,0.063,142.21,142.16,0.12549]
[1740554270824,0.063,142.21,142.18,0.12549]
[1740554271829,0.063,142.21,142.18,7.15869]
[1740554272833,0.063,142.21,142.18,0.12549]
[1740554273016,0.063,142.21,142.17,13.4137]
[1740554274712,0.063,142.21,142.18,0.12549]
[1740554276620,0.063,142.21,142.19,7.0328]
[1740554278640,0.063,142.21,142.18,6.34]
[1740554278813,0.063,142.21,142.15,7.0347]
[1740554279634,0.063,142.21,142.14,14.7145]
[1740554279864,0.063,142.21,142.16,6.36]
[1740554280042,81.1,142.2,142.16,6.36]
[1740554281427,81.1,142.2,142.17,0.12549]
[1740554282038,81.1,142.2,142.16,13.3941]
[1740554282328,81.1,142.2,142.16,6.36]
[1740554282532,88.1323,142.2,142.16,6.36]
[1740554283336,81.1,142.19,142.1,8.0025]
[1740554283507,81.1,142.18,142.1,14.3625]
[1740554283716,81.1,142.17,142.09,6.39]
[1740554283948,81.1,142.17,142.09,5.25]
[1740554284149,81.1,142.17,142.09,12.2877]
[1740554284532,81.1,142.17,142.09,5.25]
[1740554284734,7.0343,142.16,142.09,5.25]
[1740554284934,81.1,142.15,142.09,5.25]
[1740554285126,81.1,142.15,142.09,12.2877]
[1740554285452,81.1,142.14,142.09,5.25]
[1740554285756,81.1,142.14,142.1,0.03]
[1740554287564,88.1354,142.14,142.1,0.03]
[1740554287722,81.1,142.13,142.1,0.03]
[1740554288049,81.1,142.12,142.1,0.03]
[1740554289035,88.1365,142.12,142.1,0.03]
[1740554289252,88.1365,142.12,142.06,0.03]
[1740554289253,81.1,142.11,142.06,0.03]
[1740554289430,20.0,142.08,142.06,0.03]
[1740554289636,81.1,142.07,142.06,0.03]
[1740554291158,88.1387,142.07,142.06,0.03]
[1740554292434,81.1,142.07,142.06,0.03]
[1740554296064,81.1,142.1,142.06,0.03]
[1740554296559,81.1,142.13,142.08,0.12549]
[1740554296742,81.1,142.13,142.09,7.0377]
[1740554297327,81.1,142.13,142.1,6.4]
[1740554297760,81.1,142.13,142.1,13.4371]
[1740554299371,81.1,142.13,142.1,6.4]
[1740554299877,81.1,142.13,142.07,25.81373886]
[1740554300559,81.1,142.13,142.07,7.0386]
[1740554301071,81.1,142.12,142.07,7.0386]
[1740554301240,81.1,142.12,142.06,0.03]
[1740554302046,7.0368,142.11,142.06,0.03]
[1740554302386,81.1,142.1,142.06,0.03]
[1740554302670,81.1,142.09,142.06,0.03]
[1740554303948,7.0382,142.08,142.06,0.03]
[1740554306077,81.1,142.07,142.06,0.03]
[1740554306280,7.0382,142.08,142.06,0.03]
[1740554306954,20.0,142.08,142.06,0.03]
[1740554308591,20.0,142.07,142.06,0.03]
[1740554308949,27.0387,142.07,142.06,0.03]
[1740554313559,45.68834886,142.07,142.06,0.03]
[1740554317085,27.0387,142.07,142.06,0.03]
[1740554317268,27.16419,142.07,142.06,0.03]
[1740554317984,27.0387,142.07,142.06,0.03]
[1740554318291,7.0387,142.07,142.06,0.03]
[1740554318490,27.0387,142.07,142.06,0.03]
[1740554319402,45.81383886,142.07,142.06,0.03]
[1740554320002,20.0,142.07,142.06,0.03]
[1740554321888,7.22579,142.1,142.06,0.03]
[1740554322191,81.1,142.09,142.06,0.03]
[1740554322991,88.1379,142.09,142.06,0.03]
[1740554326704,81.1,142.08,142.06,0.03]
[1740554326899,7.0387,142.07,142.06,0.03]
[1740554327905,25.81383886,142.07,142.06,0.03]
[1740554331277,7.16419,142.07,142.06,0.03]
[1740554331482,18.77513886,142.05,142.02,0.03]
[1740554331880,18.64964886,142.03,142.02,0.03]
[1740554332128,25.69034886,142.03,142.02,0.03]
[1740554332488,28.44416398,142.03,142.02,0.03]
[1740554332688,28.56965398,142.03,142.02,0.03]
[1740554333010,81.22549,142.02,141.96,1.8874661]
[1740554333180,18.64964886,142.0,141.96,1.8874661]
[1740554334117,18.64964886,141.98,141.96,1.8874661]
[1740554334290,99.87513886,141.97,141.96,1.8874661]
[1740554335187,100.00062886,141.97,141.96,1.8874661]
[1740554335905,107.04432886,141.97,141.96,1.8874661]
[1740554337676,106.91883886,141.97,141.96,1.8874661]
[1740554337883,88.26919,141.97,141.96,1.8874661]
[1740554338686,7.0433,141.98,141.96,1.8874661]
[1740554339218,20.0,142.0,141.96,1.8874661]
[1740554339710,20.0,141.99,141.96,1.8874661]
[1740554340087,27.0429,141.99,141.96,1.8874661]
[1740554343092,18.77513886,141.98,141.96,1.8874661]
[1740554343697,0.12549,141.97,141.96,1.8874661]
[1740554344491,18.77513886,141.98,141.96,1.8874661]
[1740554345123,29.56298905,141.97,141.96,1.8874661]
[1740554347215,31.14978905,141.97,141.94,0.03]
[1740554347408,18.64964886,141.92,141.87,5.0]
[1740554348596,18.64964886,141.9,141.87,5.0]
[1740554348791,7.0467,141.91,141.87,5.0]
[1740554348992,24.6634,141.91,141.87,5.0]
[1740554349392,28.18679982,141.91,141.87,5.0]
[1740554350814,0.12549,141.9,141.87,5.0]
[1740554351322,81.1,141.9,141.87,5.0]
[1740554351724,81.1,141.92,141.87,25.0]
[1740554351915,81.1,141.92,141.88,6.0687]
[1740554352496,81.1,141.92,141.88,13.1164]
[1740554354019,81.1,141.92,141.89,1.6155]
[1740554354220,81.1,141.98,141.9,18.77513886]
[1740554354415,88.1431,141.99,141.91,7.0467]
[1740554355028,99.87513886,141.98,141.89,1.6155]
[1740554355203,99.87513886,141.98,141.9,7.0471]
[1740554356429,7.0437,141.97,141.9,7.0471]
[1740554358032,7.0437,141.97,141.91,0.03]
[1740554359532,81.1,141.96,141.91,0.03]
[1740554361634,81.1,141.96,141.91,7.0767]
[1740554362930,81.1,141.96,141.92,6.4]
[1740554364038,81.1,141.96,141.92,13.4458]
[1740554364436,81.1,141.99,141.94,7.7688]
[1740554364625,81.1,141.99,141.95,0.12549]
[1740554365031,0.063,142.02,141.95,18.90062886]
[1740554365640,81.1,142.01,141.95,0.12549]
[1740554366138,81.1,142.01,141.96,7.0442]
[1740554368145,81.1,142.01,141.95,7.0447]
[1740554368352,88.1417,142.01,141.95,7.0447]
[1740554369022,81.1,142.01,141.95,7.0447]
[1740554369427,88.1418,142.01,141.94,7.7688]
[1740554369961,88.2048,142.01,141.94,7.7688]
[1740554370360,81.1,142.0,141.94,7.7688]
[1740554370647,81.1,142.0,141.94,14.8139]
[1740554370852,81.1,142.0,141.95,0.12549]
[1740554372545,81.1,142.0,141.96,7.0442]
[1740554372844,0.063,142.01,141.97,6.50549]
[1740554373967,0.063,142.01,141.99,7.0427]
[1740554374179,0.063,142.01,142.0,1.5299]
[1740554375027,0.063,142.01,142.0,8.5721]
[1740554377151,0.063,142.01,142.0,27.34723886]
[1740554378225,0.063,142.01,142.0,28.34723886]
[1740554378425,0.063,142.01,142.0,8.5721]
[1740554379457,0.063,142.01,142.0,1.5299]
[1740554380149,0.063,142.01,141.98,13.3306]
[1740554382167,0.063,142.01,141.99,0.12549]
[1740554382371,0.063,142.01,142.0,7.0422]
[1740554383370,0.063,142.01,142.0,9.29318]
[1740554383371,0.0001,142.01,142.0,9.29318]
[1740554383547,0.0001,142.01,142.0,8.29318]
[1740554384150,0.0001,142.01,142.0,7.29318]
[1740554384373,0.0001,142.01,142.0,8.29318]
[1740554384575,0.0001,142.01,142.0,7.16769]
[1740554384774,0.0001,142.01,142.0,8.16769]
[1740554385074,0.0001,142.01,142.0,7.16769]
[1740554385956,0.0001,142.01,142.0,9.29318]
[1740554388470,0.0001,142.01,142.0,12.81970362]
[1740554388654,0.0001,142.01,142.0,31.46935248]
[1740554389173,0.0001,142.01,142.0,114.36935248]
[1740554389374,0.0001,142.01,142.0,112.24386248]
[1740554390674,0.0001,142.01,142.0,113.24386248]
[1740554394072,0.0001,142.01,142.0,113.27386248]
[1740554395077,0.0001,142.01,142.0,30.37386248]
[1740554398060,0.0001,142.01,142.0,10.72421362]
[1740554400281,0.0001,142.01,142.0,29.37386248]
[1740554401184,0.0001,142.01,142.0,0.03]
[1740554401479,81.1001,142.01,142.0,0.03]
[1740554401655,88.1418,142.01,142.0,0.03]
[1740554402273,7.0418,142.01,142.0,0.03]
[1740554402481,0.0001,142.01,142.0,0.03]
[1740554404485,0.0001,142.01,142.0,39.67964886]
[1740554405063,0.0001,142.01,142.0,39.93062886]
[1740554405982,0.0001,142.01,142.0,46.97282886]
[1740554406783,0.0001,142.01,142.0,47.97282886]
[1740554407083,0.0001,142.01,142.0,51.45627213]
[1740554408078,0.0001,142.01,142.0,50.45627213]
[1740554408577,0.0001,142.01,142.0,134.35627213]
[1740554409174,0.063,142.1,142.05,0.12549]
[1740554409375,0.063,142.1,142.06,6.34]
[1740554410287,0.063,142.1,142.06,13.379]
[1740554412486,0.063,142.1,142.07,0.12549]
[1740554412785,0.063,142.1,142.07,18.77513886]
[1740554413690,0.063,142.1,142.06,6.34]
[1740554414897,0.063,142.1,142.06,13.379]
[1740554416377,0.063,142.1,142.07,0.12549]
[1740554417482,0.063,142.1,142.06,6.34]
[1740554417786,0.063,142.1,142.02,7.0412]
[1740554417787,82.7073,142.09,142.02,7.0412]
[1740554418092,81.1,142.08,142.02,7.0412]
[1740554418270,88.1386,142.08,142.01,13.50709]
[1740554421294,81.163,142.1,142.04,18.64964886]
[1740554421470,81.163,142.1,142.05,0.12549]
[1740554422385,81.163,142.1,142.04,18.59953886]
[1740554422587,81.163,142.1,142.05,0.12549]
[1740554422896,81.163,142.1,142.06,6.4]
[1740554423381,81.163,142.1,142.07,7.0387]
[1740554424497,81.163,142.1,142.07,24.6356]
[1740554424498,0.063,142.1,142.07,24.6356]
[1740554424897,0.063,142.1,142.08,18.77513886]
[1740554425277,0.063,142.1,142.07,17.5969]
[1740554425500,0.063,142.1,142.08,7.0382]
[1740554426696,0.063,142.1,142.09,18.77513886]
[1740554427597,0.063,142.1,142.09,25.81283886]
[1740554430098,0.063,142.1,142.09,25.93832886]
[1740554430293,0.063,142.1,142.09,26.93832886]
[1740554431797,0.063,142.16,142.09,26.93832886]
[1740554431798,0.063,142.16,142.11,18.77513886]
[1740554431980,0.063,142.16,142.12,6.38]
[1740554433694,0.063,142.16,142.12,13.4161]
[1740554434100,81.163,142.16,142.12,13.4161]
[1740554435699,81.1,142.15,142.12,6.38]
[1740554435909,81.1,142.15,142.1,7.0371]
[1740554436201,81.1,142.14,142.07,13.4187]
[1740554436380,81.1,142.13,142.07,13.4187]
[1740554436702,81.1,142.13,142.1,20.0]
[1740554436908,81.1,142.12,142.1,20.0]
[1740554437277,81.1,142.12,142.07,6.38]
[1740554437581,81.1,142.11,142.07,6.38]
[1740554437784,81.1,142.1,142.04,7.0402]
[1740554437982,81.1,142.09,142.02,213.3]
[1740554438198,81.1,142.09,142.03,13.4207]
[1740554439507,88.1378,142.09,142.03,7.0407]
[1740554439715,88.1378,142.09,142.03,13.4207]
[1740554442307,81.1,142.08,142.03,6.38]
[1740554442520,81.1,142.07,142.01,7.0416]
[1740554442706,81.1,142.06,142.01,7.0416]
[1740554442896,81.1,142.05,142.01,20.0]
[1740554443105,82.608,142.05,142.0,13.4322]
[1740554443794,82.608,142.05,142.0,7.0722]
[1740554444194,81.1,142.04,142.0,0.03]
[1740554444396,81.1,142.04,142.03,0.03]
[1740554446024,81.1,142.04,142.03,20.03]
[1740554446214,82.6847,142.09,142.03,27.0707]
[1740554446396,82.6847,142.09,142.04,6.36]
[1740554448092,82.6847,142.09,142.05,7.0397]
[1740554448296,0.063,142.1,142.05,24.6391]
[1740554448830,0.063,142.1,142.06,18.77513886]
[1740554449113,0.063,142.1,142.06,19.77513886]
[1740554450415,0.063,142.1,142.07,7.0387]
[1740554452200,0.063,142.1,142.07,10.53973243]
[1740554452402,0.063,142.1,142.09,27.0377]
[1740554452603,0.063,142.1,142.09,52.27832886]
[1740554453413,0.0001,142.1,142.09,274.96262886]
[1740554458822,0.0001,142.1,142.09,273.96262886]
[1740554459005,0.0001,142.1,142.09,254.96262886]
[1740554460125,0.0001,142.1,142.09,253.96262886]
[1740554460326,0.0001,142.1,142.09,254.96262886]
[1740554461823,0.0001,142.1,142.09,253.96262886]
[1740554462019,0.0001,142.1,142.09,254.96262886]
[1740554462513,0.0001,142.1,142.09,253.96262886]
[1740554462709,0.0001,142.1,142.09,116.15832886]
[1740554463328,0.0001,142.1,142.09,117.15832886]
[1740554463726,0.0001,142.1,142.09,253.35832886]
[1740554465733,0.0001,142.1,142.09,295.74832886]
[1740554466527,0.0001,142.1,142.09,298.51785202]
[1740554468630,0.0001,142.1,142.09,295.74832886]
[1740554469317,0.0001,142.1,142.09,159.57832886]
[1740554469731,0.0001,142.1,142.09,116.18832886]
[1740554469923,0.0001,142.1,142.09,115.18832886]
[1740554470124,0.0001,142.1,142.09,116.18832886]
[1740554472626,0.0001,142.1,142.09,115.06283886]
[1740554473041,0.0001,142.1,142.09,7.0677]
[1740554473229,0.0001,142.1,142.09,13.3877]
[1740554474242,0.0001,142.1,142.09,14.3877]
[1740554474935,0.0001,142.1,142.09,13.3877]
[1740554476638,0.0001,142.1,142.09,0.03]
[1740554477542,1.5277,142.1,142.09,0.03]
[1740554477930,7.8317,142.1,142.04,13.3598]
[1740554478125,81.1,142.09,142.04,6.32]
[1740554478436,81.1,142.08,142.03,0.03]
[1740554478626,1.6034,142.07,142.03,0.03]
[1740554478945,81.1,142.06,142.03,0.03]
[1740554479145,88.1393,142.06,142.03,0.03]
[1740554480032,81.1,142.06,142.03,0.03]
[1740554482044,81.1,142.05,142.03,0.03]
[1740554482237,6.2047,142.04,142.03,0.03]
[1740554485628,13.2449,142.04,142.03,0.03]
[1740554487325,6.2047,142.04,142.03,0.03]
[1740554492948,13.2449,142.04,142.03,0.03]
[1740554493763,6.2047,142.04,142.03,0.03]
[1740554494562,24.36922197,142.07,142.03,0.03]
[1740554494866,11.40802197,142.07,142.03,0.03]
[1740554497968,4.36922197,142.07,142.03,0.03]
[1740554498769,11.40802197,142.07,142.03,0.03]
[1740554499070,81.1,142.06,142.03,0.03]
[1740554499967,88.1393,142.06,142.03,0.03]
[1740554501552,0.12549,142.05,142.03,0.03]
[1740554502877,7.0402,142.04,142.03,0.03]
[1740554507382,18.77513886,142.0,141.94,0.03]
[1740554507556,21.5933,141.97,141.91,0.03]
[1740554507880,18.77513886,141.96,141.91,0.03]
[1740554508357,20.0,141.93,141.91,0.03]
[1740554509486,20.0,141.92,141.91,0.03]
[1740554511096,0.12549,141.95,141.91,0.03]
[1740554513088,18.77513886,141.94,141.91,0.03]
[1740554513394,0.12549,141.93,141.91,0.03]
[1740554513567,81.1,141.92,141.91,0.03]
[1740554516894,25.82033886,141.94,141.91,0.03]
[1740554517569,20.0,141.92,141.91,0.03]
[1740554517970,38.77513886,141.92,141.91,0.03]
[1740554519183,20.0,141.92,141.91,0.03]
[1740554519395,18.1980425,141.97,141.91,0.03]
[1740554519593,1.5933,141.97,141.91,0.03]
[1740554519768,1.646,142.0,141.91,0.03]
[1740554520120,8.6882,142.0,141.91,0.03]
[1740554520302,0.12549,141.99,141.91,0.03]
[1740554520664,18.90062886,141.99,141.91,0.03]
[1740554521097,25.94382886,141.99,141.91,0.03]
[1740554521389,26.94382886,141.99,141.91,0.03]
[1740554521606,20.0,141.96,141.91,0.03]
[1740554522091,81.1,141.95,141.91,0.03]
[1740554524092,81.1,141.98,141.91,0.03]
[1740554524281,81.1,141.97,141.92,7.6724]
[1740554524984,81.1,141.97,141.92,7.1724]
[1740554525180,81.1,141.97,141.93,7.0457]
[1740554525378,81.1,141.97,141.92,14.2184]
[1740554526694,81.1,141.97,141.92,31.8339]
[1740554527176,81.1,142.0,141.94,24.6582]
[1740554527505,1.5824,142.04,141.94,25.6582]
[1740554527506,81.1,141.99,141.94,25.6582]
[1740554527994,81.1,141.99,141.95,1.0]
[1740554528688,0.063,142.0,141.95,1.0]
[1740554528886,0.063,142.0,141.96,7.0442]
[1740554529288,0.12549,141.98,141.92,7.1724]
[1740554529469,81.1,141.97,141.92,7.1724]
[1740554529674,81.1,141.96,141.92,7.1724]
[1740554529874,81.1,141.96,141.92,14.2186]
[1740554530184,81.1,141.96,141.92,7.1724]
[1740554531196,81.1,141.96,141.92,14.2185]
[1740554531396,81.1,141.96,141.91,20.03]
[1740554532896,81.1,141.95,141.91,0.03]
[1740554534589,81.1,141.99,141.91,0.03]
[1740554534769,88.1428,141.99,141.91,0.03]
[1740554535270,88.1428,141.99,141.91,7.0767]
[1740554535506,81.1,141.99,141.92,18.77513886]
[1740554535802,81.1,141.99,141.93,1.5525]
[1740554535978,81.1,141.99,141.94,6.34]
[1740554536178,81.1,141.99,141.94,12.7388]
[1740554537003,81.1,141.99,141.94,19.7838]
[1740554537684,81.1,141.99,141.95,18.77513886]
[1740554537997,0.063,142.0,141.95,19.77513886]
[1740554538185,0.063,142.0,141.95,18.77513886]
[1740554538386,7.1054,142.0,141.94,95.6388]
[1740554539206,0.063,142.0,141.95,6.36]
[1740554540493,81.1,141.99,141.95,6.36]
[1740554541296,81.1,141.98,141.95,6.36]
[1740554541491,88.1433,141.98,141.95,6.36]
[1740554542503,88.1433,141.98,141.93,1.5525]
[1740554542703,81.1,141.97,141.91,0.03]
[1740554542921,81.1,141.96,141.91,0.03]
[1740554543225,20.0,141.93,141.91,0.03]
[1740554543383,81.1,141.92,141.91,0.03]
[1740554544498,7.0462,141.92,141.91,0.03]
[1740554545710,20.0,141.94,141.91,0.03]
[1740554545901,7.0457,141.93,141.91,0.03]
[1740554548414,20.12549,141.92,141.91,0.03]
[1740554549416,27.17169,141.92,141.91,0.03]
[1740554550013,45.94682886,141.92,141.91,0.03]
[1740554550915,45.82133886,141.92,141.88,0.03]
[1740554551105,63.43683886,141.92,141.88,0.03]
[1740554553409,66.98622993,141.92,141.88,0.03]
[1740554554020,27.0462,141.92,141.88,0.03]
[1740554554220,17.6129,141.95,141.88,0.03]
[1740554554221,81.1,141.93,141.88,0.03]
[1740554556427,88.1461,141.93,141.88,0.03]
[1740554558508,81.1,141.92,141.88,0.03]
[1740554558715,81.1,141.91,141.88,0.03]
[1740554559505,81.1,141.91,141.88,1.5897]
[1740554560423,81.1,141.91,141.88,0.03]
[1740554561114,81.1,141.91,141.88,6.4673]
[1740554561533,81.1,141.91,141.88,13.5153]
[1740554561708,81.1,141.91,141.88,6.4673]
[1740554562327,81.1,141.91,141.88,13.5154]
[1740554562628,81.1,141.91,141.88,6.4673]
[1740554563026,88.1468,141.91,141.88,0.03]
[1740554563212,80.9241,141.9,141.88,0.03]
[1740554563412,80.9241,141.89,141.88,0.03]
[1740554563609,7.0467,141.91,141.88,0.03]
[1740554564021,9.8722607,141.91,141.88,0.03]
[1740554565436,7.1093,141.92,141.88,0.03]
[1740554565624,81.1,141.91,141.88,0.03]
[1740554567207,81.1,141.91,141.88,6.35]
[1740554569537,81.1,141.91,141.88,13.3982]
[1740554570336,81.1,141.91,141.88,6.35]
[1740554570537,88.1467,141.91,141.88,6.35]
[1740554570837,81.1,141.91,141.88,6.35]
[1740554573032,0.063,141.92,141.88,6.35]
[1740554573232,0.063,141.92,141.9,7.9383]
[1740554573743,0.063,141.92,141.91,18.90062886]
[1740554573916,81.1,141.98,141.91,20.90062886]
[1740554574120,81.1,141.98,141.93,0.12549]
[1740554574321,81.1,141.98,141.94,6.32]
[1740554574521,0.063,142.0,141.94,6.32]
[1740554579325,81.1,141.99,141.94,6.32]
[1740554579638,88.143,141.99,141.94,6.32]
[1740554579845,81.1,141.98,141.94,6.32]
[1740554580163,81.1,141.97,141.9,7.9383]
[1740554581544,88.1437,141.97,141.9,14.9852]
[1740554584863,81.1,141.97,141.91,18.77513886]
[1740554585057,81.1,141.99,141.92,0.12549]
[1740554585255,0.063,142.0,141.92,2.12549]
[1740554586146,0.063,142.0,141.92,1.12549]
[1740554586450,0.063,142.0,141.93,7.0457]
[1740554586625,81.1,141.99,141.94,6.32]
[1740554587423,81.1,141.99,141.95,7.0447]
[1740554590550,88.1427,141.99,141.94,6.32]
[1740554590750,81.1,141.98,141.94,6.32]
[1740554591051,81.1,141.98,141.94,13.3651]
[1740554591249,0.063,142.0,141.94,13.3651]
[1740554595444,0.063,142.0,141.97,0.25098]
[1740554597441,0.063,142.0,141.98,7.0432]
[1740554597641,0.063,142.0,141.96,14.8267]
[1740554597862,0.063,142.0,141.98,6.32]
[1740554599956,81.163,142.0,141.98,6.32]
[1740554603853,81.1,141.99,141.91,0.03]
[1740554604070,18.77513886,141.97,141.91,0.03]
[1740554604374,81.1,141.96,141.91,0.03]
[1740554605952,7.0447,141.95,141.91,0.03]
[1740554606156,88.1442,141.96,141.91,0.03]
[1740554607169,105.7547,141.96,141.91,0.03]
[1740554607396,0.12549,141.95,141.91,0.03]
[1740554607551,81.22549,141.95,141.91,0.03]
[1740554608075,7.0452,141.94,141.91,0.03]
[1740554608384,81.1,141.93,141.91,0.03]
[1740554609951,7.17169,141.92,141.91,0.03]
[1740554611260,25.94682886,141.92,141.91,0.03]
[1740554611456,25.94682886,141.92,141.9,0.03]
[1740554612058,7.17169,141.92,141.9,0.03]
[1740554613654,25.82133886,141.92,141.9,0.03]
[1740554613990,20.0,141.88,141.87,4.97]
[1740554614790,27.0482,141.88,141.87,5.0]
[1740554615969,45.82333886,141.88,141.87,5.0]
[1740554616170,27.0482,141.88,141.87,5.0]
[1740554616590,45.82333886,141.88,141.87,5.0]
[1740554617491,45.94882886,141.88,141.87,5.0]
[1740554618491,49.49427239,141.88,141.87,5.0]
[1740554619490,18.77513886,141.86,141.78,14.8805]
[1740554619688,0.12549,141.85,141.78,7.8275]
[1740554620596,0.12549,141.85,141.78,14.8803]
[1740554620984,7.0487,141.87,141.78,14.8803]
[1740554621189,8.0487,141.87,141.78,14.8803]